[Event "VII Totalizator Sportowy 2022"]
[Site "Bydgoszcz"]
[Date "2022.06.27"]
[Round "3.10"]
[White "Dzhuguryan, Tygran"]
[Black "Janik, Igor"]
[Result "0-1"]
[ECO "A40"]
[WhiteElo "2203"]
[BlackElo "2525"]
[Annotator "TA"]
[PlyCount "105"]
[EventDate "2022.06.25"]
[EventType "swiss"]
[EventCountry "POL"]
[SourceTitle "playchess.com"]
[Source "ChessBase"]
[SourceQuality "1"]
[TimeControl "40/5400+30:1800+30"]

{[%evp 9,105,25,29,30,45,40,33,28,43,12,22,-10,34,12,22,5,12,12,48,0,0,0,0,0,0,-6,-16,-3,1,-4,14,0,0,0,0,0,0,0,0,0,23,0,0,-41,-22,-64,-59,-27,0,-30,0,-14,0,0,0,0,0,-32,0,0,0,0,0,-9,0,-4,20,0,0,0,114,106,102,119,137,117,177,175,263,41,22,0,252,0,0,0,0,-1052,-1027,-1934,-1787,-2135,-2114,-2444,29992,-29995,-29989,-29989]} 1. d4 {[%emt 0:00:04]} g6 {[%emt 0:00:12]} 2. c4 {[%emt 0:00:07]} Bg7 {[%emt 0:00:05]} 3. e4 {[%emt 0:00:17]} d6 {[%emt 0:00:14]} 4. h3 {[%emt 0:00:20]} Nc6 {[%emt 0:01:13]} 5. Nf3 {[%emt 0:00:56]} e5 {[%emt 0:00:08]} 6. d5 {[%emt 0:00:07] A41: 1 d4 d6: Tartakower System and Modern Defence.} Nce7 {[%emt 0:00:05]} 7. Nc3 {[%emt 0:01:19]} f5 {[%emt 0:00:10]} 8. Bd3 {[%emt 0:02:04] White is slightly better.} Nf6 {[%emt 0:00:12]} 9. Be3 {[%emt 0:02:51]} O-O {[%emt 0:01:23]} 10. Qc2 {[%emt 0:00:28] [#]} h6 $146 {[%emt 0:06:35][%cal Ob7b5]} ({Predecessor:} 10... fxe4 11. Nxe4 Nf5 12. Bg5 h6 13. Bxf6 Bxf6 14. g4 Nh4 15. Nxh4 Bxh4 16. O-O-O Kg7 {0-1 (49) Gago Padreny,I (2289)-Vavulin,M (2554) Chess.com INT 2020}) 11. Nh4 {[%emt 0:06:47][%cal Re4f5]} f4 {[%emt 0:00:46]} 12. Bd2 {[%emt 0:00:03]} g5 {[%emt 0:02:28]} 13. Nf3 {[%emt 0:00:02]} c5 {[%emt 0:00:50]} 14. dxc6 {[%emt 0:03:49]} (14. a4 $14 {is superior.}) 14... Nxc6 $11 {[%emt 0:01:43]} 15. Nd5 {[%emt 0:00:17]} Be6 {[%emt 0:02:46]} 16. Bc3 {[%emt 0:09:56]} Rc8 {[%emt 0:02:55]} 17. Qb3 {[%emt 0:06:42]} Nd7 {[%emt 0:00:44]} 18. Qd1 {[%emt 0:05:05]} (18. Qxb7 $2 Nc5 19. Qb5 Nxd3+ $19) 18... a5 {[%emt 0:04:16]} 19. a3 {[%emt 0:02:28]} Bf7 {[%emt 0:07:31]} 20. b4 {[%emt 0:05:20]} axb4 {[%emt 0:01:03]} 21. axb4 {[%emt 0:00:03]} Ne7 {[%emt 0:00:20]} 22. Rc1 {[%emt 0:13:08]} Nxd5 {[%emt 0:03:58]} 23. cxd5 {[%emt 0:00:46]} Nf6 {[%emt 0:00:37]} 24. Nd2 {[%emt 0:01:18]} h5 25. f3 {[%emt 0:00:34] Against g4} Be8 {[%emt 0:03:13]} 26. Nc4 {[%emt 0:00:56]} (26. b5 $5 {[%cal Rc3b4]}) 26... Rf7 {[%emt 0:00:48][%cal Og5g4]} 27. Qe2 {[%emt 0:06:56]} Rfc7 {[%emt 0:02:15]} (27... b5 28. Na5 $11) 28. Kd2 $1 {[%emt 0:00:36]} Bg6 {[%emt 0:07:40][%cal Of6d5] Strongly threatening ...Nxd5!} 29. Ba1 {[%emt 0:08:54]} Bf8 {[%emt 0:03:31]} (29... b5 30. Na5 $16) (29... g4 $5) 30. Rc2 Qe8 {[%emt 0:05:49]} 31. Nb6 {[%emt 0:04:30]} Rxc2+ {[%emt 0:00:59]} 32. Bxc2 {[%emt 0:00:02]} Rc7 {[%emt 0:00:36]} 33. Bb2 Qd8 {[%emt 0:03:56][%cal Oc7c2]} 34. Bd3 {[%emt 0:04:58]} g4 {[%emt 0:00:34]} 35. hxg4 {[%emt 0:06:46]} hxg4 {[%emt 0:01:21] next ...Nh5 is good for Black.} 36. Qf2 $1 {[%emt 0:00:28]} Rg7 {[%emt 0:03:12]} 37. Nc4 {[%emt 0:01:01]} Nh5 {[%emt 0:00:57]} 38. Qh4 {[%emt 0:03:26]} ({Reject} 38. fxg4 Ng3 39. Re1 Be8 $15) 38... Be7 {[%emt 0:01:08]} 39. Qxg4 {[%emt 0:00:45]} Bf7 {[%emt 0:01:41]} (39... Nf6 $11 {keeps the balance.} 40. Qe6+ (40. Qh3 $2 Rh7 $19) 40... Bf7) 40. Qh3 $16 {[%emt 0:00:00]} b5 {[%emt 0:00:00]} 41. Na5 {[%emt 0:13:17] Black must now prevent Nc6.} Qb6 {[%emt 0:00:44]} 42. Re1 $1 {[%emt 0:03:51]} Ng3 {[%emt 0:07:36]} (42... Kf8 $16 43. Nc6 Bf6) 43. Bc3 $1 $18 {[%emt 0:00:10]} ({Not} 43. Qc8+ Bf8 44. Nc6 Qf2+ 45. Re2 Nxe2 46. Ne7+ Kh8 47. Qxf8+ Bg8 48. Bxe2 Qe3+ 49. Kd1 Qb3+ 50. Kc1 Qe3+ 51. Kd1 Qb3+ 52. Kc1 Qe3+ 53. Kd1 $11) 43... Rh7 {[%emt 0:03:04] [#]} (43... Bh5 {keeps fighting.}) 44. Qc8+ $2 {[%emt 0:07:42]} (44. Qg4+ $1 $18 Rg7 45. Qc8+ Bf8 46. Nc6) 44... Bf8 $1 $14 {[%emt 0:00:07]} 45. Nc6 {[%emt 0:00:44] Hoping for Kc1.} (45. Kc1 $5 {[%cal Ra5c6]}) 45... Rh2 $2 {[%emt 0:06:15][%mdl 8192]} (45... Qf2+ $11 {and Black stays safe.} 46. Kc1 Qxg2) 46. Ne7+ $2 {[%emt 0:04:04]} ({White has to play} 46. Kc1 $18 {And now Nb8 would win.} Rxg2 47. Ne7+ Kg7 48. Qg4+ Kh7 49. Qh3+ Bh5 50. Qxg2 Bxe7 51. Kc2) 46... Kg7 $11 {[%emt 0:00:07] Chess con chili.} 47. Qg4+ {[%emt 0:03:20]} Kh7 {[%emt 0:01:47]} 48. Nf5 $2 {[%emt 0:01:22][%mdl 8192]} (48. Qd7 $11 Bxe7 49. Qxe7 Rxg2+ 50. Kc1) 48... Bh5 $19 {[%emt 0:00:42]} 49. Qg5 {[%emt 0:00:39]} Rxg2+ {[%emt 0:00:10]} 50. Re2 {[%emt 0:00:53]} Nf1+ {[%emt 0:00:08]} 51. Kd1 Qa7 $4 {[%mdl 8192]} 52. Re1 $4 {[%mdl 8192]} Bxf3+ 53. Be2 {Weighted Error Value: White=0.68/Black=0.35} 0-1

[Event "VII Totalizator Sportowy 2022"]
[Site "Bydgoszcz"]
[Date "2022.06.27"]
[Round "3.11"]
[White "Lewtak, Damian"]
[Black "Zebracki, Tomasz"]
[Result "1-0"]
[ECO "A00"]
[WhiteElo "2384"]
[BlackElo "2200"]
[Annotator "TA"]
[PlyCount "51"]
[EventDate "2022.06.25"]
[EventType "swiss"]
[EventCountry "POL"]
[SourceTitle "playchess.com"]
[Source "ChessBase"]
[SourceQuality "1"]
[TimeControl "40/5400+30:1800+30"]

{[%evp 17,51,33,29,30,39,17,8,23,5,8,9,20,81,93,125,121,179,169,308,293,345,341,546,554,548,553,636,638,594,578,916,920,901,914,919,912]} 1. g3 {[%emt 0:00:02]} g6 {[%emt 0:09:23]} 2. Bg2 {[%emt 0:00:43]} Bg7 {[%emt 0:00:01]} 3. Nf3 {[%emt 0:00:35]} c5 {[%emt 0:00:28]} 4. d4 {[%emt 0:02:53]} cxd4 {[%emt 0:03:18]} 5. Nxd4 {[%emt 0:00:06]} Nc6 {[%emt 0:01:03]} 6. Nxc6 {[%emt 0:01:00]} bxc6 {[%emt 0:01:02]} 7. O-O {[%emt 0:04:52]} Nf6 {[%emt 0:05:09]} 8. c4 {[%emt 0:01:27]} O-O {[%emt 0:00:26]} 9. Nc3 {[%emt 0:00:57]} Qb6 {[%emt 0:05:36]} 10. b3 {[%emt 0:04:41] [#] A39: Symmetrical English vs ...g6: 4 Bg2 Bg7 5 Nf3 Nf6 6 0-0 0-0 7 d4.} Rd8 $146 {[%emt 0:12:20][%cal Od7d5]} ({Predecessor:} 10... d6 11. Bb2 Rb8 12. Qd2 Be6 13. Rac1 Rfc8 14. Na4 Qd8 15. c5 d5 16. Be5 Ne4 17. Qb2 Bxe5 18. Qxe5 {0-1 (66) Kourousis,E (2391)-Piorun,K (2566) Pardubice 2013}) 11. e4 {[%emt 0:05:56]} d5 {[%emt 0:17:58]} (11... Nxe4 $2 12. Nxe4 $1 Bxa1 13. Be3 $18) 12. exd5 {[%emt 0:04:36] The position is equal.} Nxd5 {[%emt 0:05:59]} 13. Nxd5 {[%emt 0:10:05]} cxd5 {[%emt 0:00:44]} 14. Be3 {[%emt 0:00:07]} Qb8 {[%emt 0:26:51]} (14... d4 $11 15. c5 (15. Bxa8 $2 dxe3 16. Qf3 exf2+ 17. Kg2 Bxa1 $19) 15... Qc7) 15. Rc1 $36 {[%emt 0:02:00][%mdl 2048] White is really pushing.} ({Of course not} 15. cxd5 Bxa1 16. Qxa1 Bb7 $11) ({But not} 15. Bxd5 Bb7 $14) 15... Ba6 {[%emt 0:01:52][%cal Od5c4] [#]} 16. Bf4 $1 {[%emt 0:03:01]} ({Inferior is} 16. Bxd5 e6 17. Bf4 Qc8 18. Bxa8 Rxd1 19. Rfxd1 Qxa8 $17) 16... Qb6 {[%emt 0:02:31]} (16... Be5 $16 {is a better defense.}) 17. Bxd5 $18 {[%emt 0:04:51] And now Re1 would win.} Bb7 {[%emt 0:02:38] [#]} (17... Rac8 $142) 18. c5 $1 {[%emt 0:02:23][%cal Bc4c5,Bc5c6][%mdl 32]} Qb5 {[%emt 0:01:36]} 19. a4 {[%emt 0:00:13]} Qa5 {[%emt 0:00:28]} (19... Qa6) 20. Bxb7 {[%emt 0:00:12] White is clearly winning.} Rxd1 {[%emt 0:00:11]} 21. Rfxd1 {[%emt 0:00:05]} Re8 {[%emt 0:00:48]} 22. c6 {[%emt 0:02:02] Threatens to win with c7.} g5 {[%emt 0:00:28]} 23. Be3 {[%emt 0:01:07] Hoping for Rc5.} Be5 {[%emt 0:00:30]} 24. Rc5 {[%emt 0:01:09]} Qc7 {[%emt 0:00:01]} 25. Rd7 {[%emt 0:00:50]} Qb8 {[%emt 0:00:01]} 26. Ra5 {[%emt 0:00:52] Weighted Error Value: White=0.02 (flawless) /Black=0.52} 1-0

[Event "VII Totalizator Sportowy 2022"]
[Site "Bydgoszcz"]
[Date "2022.06.27"]
[Round "3.12"]
[White "Lambrecht, Tomasz"]
[Black "Golubka, Petro"]
[Result "0-1"]
[ECO "E91"]
[WhiteElo "1956"]
[BlackElo "2380"]
[Annotator "TA"]
[PlyCount "104"]
[EventDate "2022.06.25"]
[EventType "swiss"]
[EventCountry "POL"]
[SourceTitle "playchess.com"]
[Source "ChessBase"]
[SourceQuality "1"]
[TimeControl "40/5400+30:1800+30"]

{[%evp 13,104,45,81,63,98,0,0,0,23,3,0,-26,0,-49,-59,-59,-57,-56,-46,-73,-84,-81,-50,-60,-54,-89,-95,-90,-61,-134,-133,-129,-109,-165,-165,-165,-165,-165,-165,-165,-165,-165,-165,-165,-165,-165,-165,-165,-159,-159,-159,-159,-159,-159,-159,-159,-159,-159,-159,-159,-159,-159,-159,-159,-159,-224,-221,-223,-212,-325,-320,-308,-293,-327,-329,-367,-363,-1021,-1018,-911,-897,-802,-755,-825,-810,-721,-796,-695,-746,-681,-692,-958,-927]} 1. d4 {[%emt 0:00:22]} Nf6 {[%emt 0:03:45]} 2. Nf3 {[%emt 0:00:23]} g6 {[%emt 0:00:05]} 3. c4 {[%emt 0:00:05]} Bg7 {[%emt 0:00:02]} 4. Nc3 {[%emt 0:00:06]} d6 {[%emt 0:00:13]} 5. e4 {[%emt 0:01:14]} O-O {[%emt 0:00:05]} 6. Be2 {[%emt 0:00:10]} Bg4 {[%emt 0:00:03]} 7. Be3 {[%emt 0:00:36]} Bxf3 {[%emt 0:00:05]} 8. Bxf3 {[%emt 0:00:29] E91: King's Indian: Classical: 6 Be2, unusual replies including 6...c5 and 6...Bg4.} e5 {[%emt 0:00:08] [#]} 9. Be2 $146 {[%emt 0:05:56]} ({But not} 9. dxe5 dxe5 10. Qb3 Nc6 $14) (9. d5 $1 $16) ({Predecessor:} 9. d5 Nfd7 10. g4 Qh4 11. Qd2 Qh3 12. Be2 a5 13. O-O-O Na6 14. Rdg1 Nac5 15. Rg3 {1-0 (15) Chigaev,M (2631)-Kamsky,G (2658) Chess.com INT 2022}) 9... exd4 $11 {[%emt 0:00:07]} 10. Bxd4 {[%emt 0:00:02] The position is equal.} Nc6 {[%emt 0:00:06]} 11. Be3 $1 {[%emt 0:05:45]} Nd7 {[%emt 0:00:11]} 12. O-O {[%emt 0:01:44]} Re8 {[%emt 0:00:38]} 13. Bd3 {[%emt 0:08:10]} (13. Rc1 $11) 13... Nc5 $15 {[%emt 0:03:49]} 14. f3 {[%emt 0:04:05]} Bxc3 {[%emt 0:01:14]} 15. bxc3 {[%emt 0:00:02]} Qf6 {[%emt 0:00:42]} 16. Bxc5 {[%emt 0:16:42]} dxc5 {[%emt 0:03:18]} 17. Qc2 {[%emt 0:00:04]} Qf4 {[%emt 0:03:09]} 18. Rad1 {[%emt 0:05:46]} Rad8 {[%emt 0:00:13]} 19. Rfe1 {[%emt 0:01:55]} Ne5 {[%emt 0:00:42]} 20. Bf1 {[%emt 0:02:26]} h5 {[%emt 0:00:16][%cal Bh7h5,Bh5h4][%mdl 32]} (20... g5 {is interesting.} 21. Qf2 g4 22. Qh4 Rxd1 23. Rxd1 Re6) 21. h3 {[%emt 0:06:57]} ({White should try} 21. Qf2 $15) 21... h4 $17 {[%emt 0:00:25]} 22. Kh1 {[%emt 0:04:14]} g5 {[%emt 0:02:16]} 23. Rxd8 {[%emt 0:00:59]} (23. Rd5 $17 {might work better.}) 23... Rxd8 $19 {[%emt 0:00:02]} 24. Rd1 {[%emt 0:00:01] Prevents Rd2.} Rxd1 {[%emt 0:03:52]} 25. Qxd1 {[%emt 0:00:25][%mdl 4096] Endgame KQB-KQN} Kg7 {[%emt 0:00:10]} 26. Qe1 {[%emt 0:04:15]} b6 {[%emt 0:00:32]} 27. Kg1 {[%emt 0:00:46]} Kf6 {[%emt 0:00:49]} 28. Kh1 {[%emt 0:00:32]} Ke7 {[%emt 0:00:14]} 29. Kg1 {[%emt 0:02:03]} f6 {[%emt 0:02:55]} 30. Kh1 {[%emt 0:00:23]} Qg3 {[%emt 0:03:39]} 31. Qd2 {[%emt 0:02:41]} c6 {[%emt 0:00:58]} 32. Qe2 {[%emt 0:06:09]} Qf4 {[%emt 0:03:05] Threatens to win with ...Qc1. 0x0.001b6967b92adp-1022s more active pieces.} 33. Qe1 {[%emt 0:00:56] Prevents Qc1.} Kd6 $40 {[%emt 0:00:33][%mdl 128] Black goes for the king.} 34. Qd1+ {[%emt 0:01:35]} Kc7 {[%emt 0:00:07] ...Qe3 is the strong threat.} 35. Qe1 {[%emt 0:00:15] Against Qe3} Ng6 {[%emt 0:00:38]} 36. Kg1 {[%emt 0:03:06]} Qe5 {[%emt 0:00:38]} 37. Qd2 {[%emt 0:00:52]} Nf4 {[%emt 0:00:34]} 38. Qc2 {[%emt 0:04:52]} Qd6 {[%emt 0:01:06]} 39. Kh1 {[%emt 0:03:52]} (39. Qa4 $17 {was necessary.} a5 40. Qc2) 39... Nh5 {[%emt 0:00:26]} 40. Kg1 {[%emt 0:00:00][%cal Oe4e5]} Ng3 {[%emt 0:00:00]} 41. Bd3 {[%emt 0:04:02]} (41. Qc1 $142) 41... Qf4 {[%emt 0:00:22]} 42. Kf2 {[%emt 0:00:33]} Nh5 {[%emt 0:02:35]} 43. Bf1 {[%emt 0:16:14]} Qg3+ {[%emt 0:00:16]} 44. Kg1 {[%emt 0:00:10][%cal Oe4e5]} Qe1 {[%emt 0:01:02] [#] Strongly threatening ...Ng3.} 45. Qa4 $2 {[%emt 0:11:13]} (45. e5 Ng3 46. Qf2 Qxc3 47. exf6) 45... a5 {[%emt 0:01:10] ( -> ...Ng3). Black is clearly winning.} 46. Qc2 {[%emt 0:00:35]} Ng3 {[%emt 0:03:48]} 47. Qf2 {[%emt 0:00:15]} Qxc3 {[%emt 0:00:20]} 48. f4 {[%emt 0:00:16]} Nxe4 {[%emt 0:01:17]} 49. Qe2 {[%emt 0:00:31]} Qd4+ {[%emt 0:00:14]} 50. Kh2 {[%emt 0:00:32]} Ng3 {[%emt 0:02:10]} 51. Qe7+ {[%emt 0:01:03]} Qd7 {[%emt 0:00:11]} 52. Qe1 {[%emt 0:00:36]} gxf4 {[%emt 0:00:19] Weighted Error Value: White=0.30/Black=0.04 (flawless)} 0-1

[Event "VII Totalizator Sportowy 2022"]
[Site "Bydgoszcz"]
[Date "2022.06.27"]
[Round "3.13"]
[White "Chojnacki, Krzysztof"]
[Black "Navaratnam, Rohan Shan Tze"]
[Result "0-1"]
[ECO "D32"]
[WhiteElo "2371"]
[BlackElo "2071"]
[Annotator "TA"]
[PlyCount "90"]
[EventDate "2022.06.25"]
[EventType "swiss"]
[EventCountry "POL"]
[SourceTitle "playchess.com"]
[Source "ChessBase"]
[SourceQuality "1"]
[TimeControl "40/5400+30:1800+30"]

{[%evp 13,90,33,32,42,47,43,47,17,19,27,20,21,20,8,12,-92,-97,-204,-181,-286,-236,-293,-283,-274,-248,-249,-173,-172,-170,-167,-167,-165,-159,-190,-180,-209,-206,-224,-224,-235,-236,-241,-240,-222,-212,-215,-206,-410,-408,-406,-381,-404,-399,-388,-397,-406,-259,-584,-584,-584,-522,-606,-584,-1594,-1006,-1622,-1500,-5935,-5583,-5208,-4606,-29988,-29980,-29966,-29971,-29981,-29970,-29986,-29987]} 1. d4 {[%emt 0:00:03]} d5 {[%emt 0:00:06]} 2. c4 {[%emt 0:00:07]} e6 {[%emt 0:00:07]} 3. Nc3 {[%emt 0:00:10]} c5 {[%emt 0:00:06]} 4. cxd5 {[%emt 0:00:53]} exd5 {[%emt 0:00:03]} 5. Nf3 {[%emt 0:00:07]} Nf6 {[%emt 0:00:12]} 6. Bg5 {[%emt 0:03:55]} Be6 {[%emt 0:00:10]} 7. Bxf6 {[%emt 0:07:46]} Qxf6 {[%emt 0:00:09]} 8. e4 {[%emt 0:00:10] D32: Tarrasch Defence: Sidelines and lines without g3.} dxe4 {[%emt 0:00:08]} 9. Bb5+ {[%emt 0:02:18]} Nc6 {[%emt 0:00:08]} 10. Nxe4 {[%emt 0:00:58] White is slightly better.} (10. Qa4 $5 Rc8 11. Ne5 $14) 10... Qf4 {[%emt 0:00:08]} 11. Qe2 {[%emt 0:00:59]} Be7 {[%emt 0:00:11]} 12. O-O {[%emt 0:10:53]} O-O {[%emt 0:00:17]} 13. Bxc6 {[%emt 0:04:34]} bxc6 {[%emt 0:00:16] [#]} 14. Nxc5 $146 {[%emt 0:00:03]} (14. dxc5 $11 {remains equal.} Bd5 15. Rfe1) ({Predecessor:} 14. dxc5 Bd5 15. Rfe1 Rfe8 16. Qd2 Qxd2 17. Nfxd2 f5 18. Nd6 Bxd6 19. cxd6 Red8 20. Nb1 Rxd6 {1-0 (52) Gukesh,D (2614)-Tari,A (2653) Warsaw 2021}) 14... Bxc5 $17 {[%emt 0:02:19] This bishop pair is nice. Black converts the advantage convincingly.} 15. g3 {[%emt 0:23:13]} (15. dxc5 $17 Bc4 16. Qe5 Qxe5 17. Nxe5 Bxf1 18. Kxf1) 15... Qg4 $19 {[%emt 0:02:29]} 16. h3 {[%emt 0:00:22] [#]} (16. dxc5 $142 Bc4 17. Qe3 Bxf1 18. Rxf1) 16... Qxh3 $1 {[%emt 0:20:35]} 17. Ng5 {[%emt 0:03:39]} Bg4 {[%emt 0:00:35]} 18. Qd2 {[%emt 0:06:34] [#]} Qh5 {[%emt 0:02:12]} 19. dxc5 {[%emt 0:00:09]} h6 {[%emt 0:05:19]} 20. f3 {[%emt 0:01:05]} hxg5 {[%emt 0:00:06]} 21. fxg4 {[%emt 0:00:05]} Qxg4 {[%emt 0:00:06]} 22. Qc3 {[%emt 0:03:54]} Rad8 {[%emt 0:03:50][%cal Ba8d8,Bd8d5,Bd5d3,Bd3g3][%mdl 32]} 23. Rf2 {[%emt 0:01:02]} Rd5 {[%emt 0:01:27]} 24. Raf1 {[%emt 0:01:39]} f6 {[%emt 0:00:19]} 25. Re1 {[%emt 0:08:36]} Rfd8 {[%emt 0:01:52] And now ...Rd3 would win.} 26. Qe3 {[%emt 0:02:25]} Rd3 {[%emt 0:06:41]} 27. Qe6+ {[%emt 0:00:49]} Qxe6 {[%emt 0:00:03]} 28. Rxe6 {[%emt 0:00:06]} Rxg3+ {[%emt 0:00:07][%mdl 4096] Endgame KRR-KRR} 29. Kh2 {[%emt 0:00:07]} Rgd3 {[%emt 0:00:06] White must now prevent ...Rd2.} 30. Rxc6 $2 {[%emt 0:00:29]} (30. Kg2 {was called for.}) 30... Rd2 {[%emt 0:00:05]} 31. Kg2 {[%emt 0:01:08] [#]} Rxf2+ $1 {[%emt 0:00:05]} 32. Kxf2 {[%emt 0:00:05] KR-KR} Rd2+ {[%emt 0:00:05]} 33. Ke3 {[%emt 0:00:03]} Rxb2 {[%emt 0:00:05]} 34. Ra6 {[%emt 0:02:10]} g4 {[%emt 0:08:49]} 35. Kf4 $2 {[%emt 0:01:45] [#]} (35. Rxa7 {was the crucial defense.} g3 36. Ra8+ Kf7 37. Rd8 Rxa2 38. Rd7+ Kg6 39. Rd1) 35... Rb4+ $1 {[%emt 0:00:23]} 36. Kg3 {[%emt 0:00:12]} f5 {[%emt 0:00:19]} 37. Rxa7 {[%emt 0:01:17]} Rc4 {[%emt 0:00:05] Threatens to win with ...Kh7.} 38. Rc7 {[%emt 0:00:10]} Kh7 {[%emt 0:10:49] Strongly threatening ...Rc3+.} 39. c6 {[%emt 0:03:51]} Kh6 {[%emt 0:00:59]} 40. Rc8 {[%emt 0:00:00]} Kg5 {[%emt 0:00:00]} 41. Kf2 {[%emt 0:01:53]} Kf4 {[%emt 0:01:18] ( -> ...g3+)} 42. c7 {[%emt 0:00:22]} Rc2+ {[%emt 0:00:07] Black mates.} 43. Ke1 {[%emt 0:00:11]} g3 {[%emt 0:00:12][%cal Bg4g3,Bg3g2][%mdl 32]} 44. Kd1 {[%emt 0:00:18]} Rc6 {[%emt 0:00:16]} 45. Ke2 {[%emt 0:00:18]} g2 {[%emt 0:00:09] Weighted Error Value: White=0.90/Black=0.24 (precise)} 0-1

[Event "VII Totalizator Sportowy 2022"]
[Site "Bydgoszcz"]
[Date "2022.06.27"]
[Round "3.14"]
[White "Malek, Jan"]
[Black "Perkampus, Laurin"]
[Result "1-0"]
[ECO "D20"]
[WhiteElo "2316"]
[BlackElo "2061"]
[Annotator "TA"]
[PlyCount "107"]
[EventDate "2022.06.25"]
[EventType "swiss"]
[EventCountry "POL"]
[SourceTitle "playchess.com"]
[Source "ChessBase"]
[SourceQuality "1"]
[TimeControl "40/5400+30:1800+30"]

{[%evp 11,107,39,37,29,35,21,24,27,19,14,38,11,12,15,24,22,14,15,15,8,22,12,24,18,27,24,24,27,22,20,22,27,43,42,38,19,18,12,5,6,5,6,0,12,52,33,32,22,30,31,31,33,168,171,298,318,319,293,297,301,285,214,229,224,273,229,502,505,462,462,449,458,450,424,416,402,402,399,381,368,741,512,777,743,806,828,933,793,1169,1157,2743,5390,5189,3614,6544,6544,5197,2587]} 1. d4 {[%emt 0:00:03]} d5 {[%emt 0:04:38]} 2. c4 {[%emt 0:00:06]} dxc4 {[%emt 0:00:04]} 3. e3 {[%emt 0:00:03]} e5 {[%emt 0:02:17]} 4. Bxc4 {[%emt 0:00:05]} exd4 {[%emt 0:00:05]} 5. exd4 {[%emt 0:00:03]} Bd6 {[%emt 0:00:16]} 6. Nf3 {[%emt 0:00:07]} Nf6 {[%emt 0:00:35]} 7. Qe2+ {[%emt 0:00:09] D20: Queen's Gambit Accepted: 3 e3 and 3 e4.} Qe7 {[%emt 0:00:27]} 8. Qxe7+ {[%emt 0:00:08]} Bxe7 {[%emt 0:01:03]} (8... Kxe7 {looks sharper.} 9. O-O Nc6 10. Nc3 Re8) 9. O-O {[%emt 0:00:09] White has an edge.} O-O {[%emt 0:00:05]} 10. Re1 {[%emt 0:00:39]} Bd6 {[%emt 0:00:36]} 11. Nc3 {[%emt 0:00:06]} h6 {[%emt 0:00:50]} 12. Nb5 {[%emt 0:01:53]} a6 {[%emt 0:08:23]} 13. Nxd6 {[%emt 0:00:10]} cxd6 {[%emt 0:00:01] [#]} 14. d5 $146 {[%emt 0:37:03]} ({Predecessor:} 14. Bf4 d5 15. Bb3 Nc6 16. Rac1 Be6 17. Ba4 Na5 18. Rc7 b5 19. Bc2 Rfc8 20. Bd3 {½-½ (84) Bindrich,F (2585)-Huschenbeth,N (2585) Dresden 2017}) 14... b5 {[%emt 0:15:23]} 15. Bb3 {[%emt 0:00:10]} Bb7 {[%emt 0:06:49]} 16. Bf4 {[%emt 0:02:25]} Bxd5 {[%emt 0:06:49]} 17. Bxd6 {[%emt 0:00:49]} Rc8 $1 {[%emt 0:03:58]} 18. Bxd5 {[%emt 0:09:38]} Nxd5 {[%emt 0:00:11]} 19. Rad1 {[%emt 0:00:12]} Nf6 {[%emt 0:04:24]} 20. Be5 {[%emt 0:09:53]} Nbd7 {[%emt 0:04:50]} 21. Bc3 {[%emt 0:00:07]} Re8 {[%emt 0:12:20]} 22. Rxe8+ {[%emt 0:02:30]} Rxe8 {[%emt 0:00:22]} 23. Rd6 {[%emt 0:00:03]} Re6 {[%emt 0:12:46]} 24. Rxe6 {[%emt 0:00:05]} fxe6 $11 {[%emt 0:00:02][%mdl 4096] Endgame KBN-KNN} 25. Nd4 {[%emt 0:00:36]} Kf7 {[%emt 0:01:39]} 26. Nc6 {[%emt 0:00:06]} Nd5 {[%emt 0:04:26]} 27. Bd4 {[%emt 0:00:05]} N7b6 {[%emt 0:03:20]} 28. b3 {[%emt 0:03:41]} Nd7 {[%emt 0:02:08]} 29. Kf1 {[%emt 0:03:44]} Nf4 {[%emt 0:01:22]} 30. Nb4 {[%emt 0:09:10]} a5 {[%emt 0:00:53]} 31. Nc6 {[%emt 0:00:02]} Nd3 {[%emt 0:01:58] Loses the game.} (31... a4 $14) 32. Nxa5 $18 {[%emt 0:00:51]} Nc1 {[%emt 0:01:07]} (32... e5 $142) 33. a4 {[%emt 0:03:16]} bxa4 {[%emt 0:00:40]} 34. bxa4 {[%emt 0:00:07]} e5 {[%emt 0:00:23]} 35. Be3 {[%emt 0:00:07]} Nd3 {[%emt 0:00:14]} 36. Nc4 {[%emt 0:03:03] Prevents Nb2.} Ke6 {[%emt 0:00:48]} 37. Ke2 {[%emt 0:01:19]} N3c5 {[%emt 0:00:39]} 38. a5 {[%emt 0:00:27]} Kd5 $2 {[%emt 0:00:20] [#]} (38... Na6 39. Kd3 Nf6) 39. Nb6+ {[%emt 0:03:45]} Nxb6 {[%emt 0:00:01]} 40. Bxc5 {[%emt 0:00:00] KB-KN} ({Not} 40. axb6 Nb7 41. Kf3 h5 $18) 40... Nd7 {[%emt 0:00:00]} (40... Kxc5 $2 41. axb6 Kxb6 42. Kf3) 41. Be3 {[%emt 0:07:58]} Nb8 {[%emt 0:04:49]} 42. Kd3 {[%emt 0:00:20]} Nc6 {[%emt 0:02:57]} 43. Bb6 {[%emt 0:00:07]} Nb4+ {[%emt 0:02:03]} 44. Kc3 {[%emt 0:00:44]} Na6 {[%emt 0:00:23]} 45. Be3 {[%emt 0:01:10]} Nc7 $2 {[%emt 0:02:08]} (45... h5 46. Bb6 Nb8) 46. Kb4 {[%emt 0:00:16] [#] Black must now prevent g4. White is clearly winning.} Kc6 {[%emt 0:00:25]} (46... h5 $142 47. Bb6 Ne8) 47. g4 {[%emt 0:00:58]} Nd5+ {[%emt 0:01:46]} 48. Kc4 {[%emt 0:00:27]} Nc7 {[%emt 0:00:36]} 49. h4 {[%emt 0:00:37][%cal Bh2h4,Bh4h5][%mdl 32]} Na6 {[%emt 0:00:40]} 50. h5 {[%emt 0:00:21]} Nb8 {[%emt 0:01:19]} 51. Bc5 {[%emt 0:00:39]} Nd7 {[%emt 0:00:47] Prevents Bf8.} 52. Be7 {[%emt 0:00:08]} Nb8 {[%emt 0:00:36]} 53. Bf8 {[%emt 0:00:11]} Nd7 {[%emt 0:01:07]} 54. Bxg7 {[%emt 0:00:07] Weighted Error Value: White=0.10 (very precise) /Black=0.28 (precise)} 1-0